Cogmind - Beta 16.1 @@@ ROGUE MODE // 2026.04.08 @ 23:15:34 Player: Nostromo Result: Destroyed by S-10 Pest with Light Assault Rifle Performance ------------- Evolutions (0) 0 Regions Visited (1) 200 Robots Destroyed (10) 50 Value Destroyed (248) 248 Prototype IDs (3) 60 Alien Tech Used (0) 0 Bonus (0) 0 TOTAL SCORE: 558 Bonus ------- None Cogmind --------- Core Integrity 0/250 Matter 300/300 Energy 100/100 System Corruption 0% Temperature Cool (0) Movement Core (1350) Ox26 Location -10/Materials Parts ------- > --- POWER (1) -------- (None) > --- PROPULSION (2) --- (None) > --- UTILITY (2) ------ Huge Storage Unit > --- WEAPON (2) ------- (None) > --- INVENTORY (25) --- Ion Engine Light Treads Light Treads Light Treads Flight Unit Heat Sink Small Storage Unit Light Armor Plating Light Armor Plating Small Laser Peak State ------------ > --- POWER ------------ Ion Engine > --- PROPULSION ------- Aluminum Leg Aluminum Leg > --- UTILITY ---------- Small Storage Unit Huge Storage Unit > --- WEAPON ----------- Light Assault Rifle Light Assault Rifle > --- INVENTORY -------- Ion Engine Light Treads Light Treads Wheel Compact Wheel Large Matter Pod Light Armor Plating Light Armor Plating Light Armor Plating Medium Laser [Rating: 8] Favorites ----------- Power Ion Engine Engine Ion Engine Propulsion Aluminum Leg Leg Aluminum Leg Utility Huge Storage Unit Storage Huge Storage Unit Protection Light Armor Plating Weapon Light Assault Rifle Energy Gun Medium Laser Ballistic Gun Light Assault Rifle Build | -11 -10 ------- Run | Yrd Mat Slots Evolved . | . . Power . | . . Propulsion . | . . Utility . | . . Weapon . | . . Parts Attached 9 | 5 4 Power 1 | 1 . Engine 1 | 1 . Core . | . . Reactor . | . . Propulsion 2 | 2 . Treads . | . . Leg 2 | 2 . Wheel . | . . Hover . | . . Flight . | . . Utility 3 | 1 2 Device . | . . Storage 2 | 1 1 Processor . | . . Hackware . | . . Protection 1 | . 1 Artifact . | . . Weapon 3 | 1 2 Energy Gun 1 | . 1 Energy Cannon . | . . Ballistic Gun 2 | 1 1 Ballistic Cannon . | . . Launcher . | . . Special Weapon . | . . Impact Weapon . | . . Slashing Weapon . | . . Piercing Weapon . | . . Special Melee Weapon . | . . Unidentified Prototypes . | . . Parts Lost 7 | . 7 Power 1 | . 1 Propulsion 2 | . 2 Utility 1 | . 1 Weapon 3 | . 3 Highest Loss Streak 6 | . 6 To Critical Strikes . | . . Average Backups 8 | 4 9 Power . | . 1 Propulsion 3 | 2 3 Utility 3 | . 3 Weapon . | 1 . Tool/Special . | . . Unused Backups 12 | . 12 Power 1 | . 1 Propulsion 6 | . 6 Utility 4 | . 4 Weapon 1 | . 1 Tool/Special . | . . Average Slot Usage (%) 97 | . 97 Engine 13 | . 13 Leg 27 | . 27 Storage 18 | . 18 Protection 9 | . 9 Energy Gun 9 | . 9 Ballistic Gun 17 | . 17 Peak Build Rating 8 | 5 8 Average Rating 6 | 3 7 On Entrance 2 | . 5 Avg Prop Armor Cover (%) . | . . Naked Turns . | . . Heaviest Build 92 | 11 92 Greatest Support 20 | 20 20 Greatest Overweight (x) 27 | 3 27 Average Overweight (x) 3 | 1 3 Largest Inventory Capacity 25 | 8 25 Average Capacity 23 | 7 24 Most Carried 11 | 8 11 Average Carried 8 | 4 9 Final Capacity 25 | 8 25 Final Carried 10 | 7 10 Class Distribution -------------------- 100% | Mutant Dominant Class ---------------- Mutant | -10/Materials Resources | -11 -10 ----------- Run | Yrd Mat Matter Collected 431 | 250 181 Remotely . | . . Salvage Created 233 | . 233 Parts 13 | . 13 Haulers Intercepted . | . . Recyclers Shooed . | . . Parts Field Recycled . | . . Retrieved Matter . | . . Parts Self-Destructed . | . . Prevented . | . . Parts Restored . | . . Kills | -11 -10 ------- Run | Yrd Mat Combat Hostiles Destroyed 6 | . 6 Guns 6 | . 6 Classes Destroyed 4 | . 4 Builder 1 | . 1 Watcher 3 | . 3 Swarmer 3 | . 3 Grunt 3 | . 3 Best Kill Streak 3 | . 3 Combat Bots Only 3 | . 3 Max Kills in Single Turn 2 | . 2 Gunslinging 1 | . 1 Exploded . | . . Melee . | . . Uniques/NPCs Destroyed . | . . Combat | -11 -10 -------- Run | Yrd Mat Hostile Shots Fired 134 | . 134 Missed 32 | . 32 Hits 102 | . 102 Projectile 102 | . 102 Critical Strikes 2 | . 2 Damage Taken 895 | . 895 Core 255 | . 255 Absorbed by Shields . | . . Core Remaining (%) 100 | 100 . Volleys Fired 30 | . 30 Largest 2 | . 2 Hottest 70 | . 70 Shots Fired 56 | . 56 Gun 56 | . 56 Cannon . | . . Launcher . | . . Special . | . . Kinetic 47 | . 47 Thermal 9 | . 9 Explosive . | . . Electromagnetic . | . . Robot Hit Streak 11 | . 11 Robot Miss Streak 5 | . 5 Penetration Max . | . . Secondary Targets 2 | . 2 Max Gunslinging Chain 1 | . 1 Shots Hit Robots 37 | . 37 Core Hits 16 | . 16 Critical Kills . | . . Critical Parts Destroyed 1 | . 1 Critical Strikes 2 | . 2 Burn 1 | . 1 Destroy 1 | . 1 Melee Attacks . | . . Impact . | . . Slashing . | . . Piercing . | . . Sneak Attacks . | . . Combat Hostiles . | . . Follow-up Attacks . | . . Damage Inflicted 499 | . 499 Guns 321 | . 321 Cannons . | . . Explosions 178 | . 178 Melee . | . . Ramming . | . . Kinetic 261 | . 261 Thermal 238 | . 238 Explosive . | . . Electromagnetic . | . . Impact . | . . Slashing . | . . Piercing . | . . Highest Corruption . | . . Average Corruption . | . . Corruption Purged . | . . Corruption Blocked . | . . Overload Shots . | . . Overflow Damage 118 | . 118 Projectiles . | . . Explosions 118 | . 118 Melee . | . . Knockbacks . | . . Impact . | . . Kinetic . | . . Secondary . | . . Self-Inflicted Damage . | . . Shots . | . . Rammed . | . . Targets Rammed . | . . Kicked . | . . Crushed . | . . Highest Temperature 93 | . 93 Average Temperature 29 | . 29 Received Heat Transfer 165 | . 165 Siege Activations . | . . Martial Activations . | . . Shielding Activations . | . . Robots Disrupted . | . . Combat Hostiles . | . . Robots Corrupted . | . . Combat Hostiles . | . . Parts Fried . | . . Impact Corruptions . | . . Robots Melted . | . . Combat Hostiles . | . . Parts Melted 1 | . 1 Heat Transferred 359 | . 359 Parts Sabotaged . | . . Parts Stolen . | . . Parts Stripped . | . . Power Chain Reactions . | . . Alert | -11 -10 ------- Run | Yrd Mat Maximum Alert Level . | . . Low Security (%) 100 | 100 100 Level 1 . | . . Level 2 . | . . Level 3 . | . . Level 4 . | . . Level 5 . | . . High Security . | . . Max Security . | . . Peak Influence 129 | . 129 Initial . | . . Average 37 | . 40 Influence Increases 335 | . 335 Destroy 0b10 Robot/C 120 | . 120 Destroy 0b10 Robot/NC 20 | . 20 Destroy Leader 36 | . 36 Successful Hack 34 | . 34 Disable Machine 75 | . 75 Destroy Structure 35 | . 35 Lose Combat Pursuer 15 | . 15 Influence Decreases 335 | . 335 Time Decay 315 | . 315 Lost Part 20 | . 20 Squads Dispatched 1 | . 1 Investigation 1 | . 1 Extermination . | . . Reinforcement . | . . Assault . | . . Garrison . | . . Intercept . | . . Searches Triggered . | . . Construction Impeded . | . . Haulers Reinforced . | . . Active Scanning Responses . | . . Cargo Convoy Interrupts . | . . Stealth | -11 -10 --------- Run | Yrd Mat Distress Signals . | . . Communications Jammed . | . . Distress Signals . | . . Times Spotted 12 | . 12 Peak Tracking Total 3 | . 3 Tactical Retreats 1 | . 1 Traps | -11 -10 ------- Run | Yrd Mat Traps Triggered . | . . Indirectly . | . . Trap Hack Attempts . | . . Triggered . | . . Disarmed . | . . Reprogrammed . | . . Reused . | . . Traps Extracted . | . . Installed . | . . Triggered . | . . Machines | -11 -10 ---------- Run | Yrd Mat Machines Disabled 5 | . 5 Max in Single Turn 5 | . 5 Machines Repaired . | . . Machines Dismantled . | . . Machines Sabotaged . | . . Overloaded Fab Kills . | . . Hacking | -11 -10 --------- Run | Yrd Mat Machines Accessed 3 | . 3 Terminals 2 | . 2 Fabricators . | . . Repair Stations . | . . Recycling Units 1 | . 1 Scanalyzers . | . . Garrison Access . | . . Total Hacks 9 | . 9 Successful 7 | . 7 Failed 2 | . 2 Catastrophic . | . . Database Lockouts . | . . Manual . | . . Terminals 5 | . 5 Fabricators . | . . Repair Stations . | . . Recycling Units 4 | . 4 Scanalyzers . | . . Garrison Access . | . . Terminal Hacks 4 | . 4 Prototype ID Bank 1 | . 1 Recycling Unit Index 1 | . 1 Locate Traps 1 | . 1 Zone Layout 1 | . 1 Fabricator Hacks . | . . Repair Station Hacks . | . . Recycling Unit Hacks 3 | . 3 Recycle Component 1 | . 1 Process 1 | . 1 Retrieve Components 1 | . 1 Scanalyzer . | . . Garrison Access Hacks . | . . Unauthorized Hacks . | . . Terminals . | . . Fabricators . | . . Repair Stations . | . . Recycling Units . | . . Scanalyzers . | . . Garrison Access . | . . Data Cores Recovered . | . . Used . | . . Hacking Detections 1 | . 1 Full Trace Events 1 | . 1 Feedback Events . | . . Feedback Blocked . | . . Robot Schematics Acquired . | . . Robots Built . | . . Authchips . | . . Time . | . . Total Robot Build Rating . | . . Part Schematics Acquired . | . . Parts Built . | . . Authchips . | . . Time . | . . Total Part Build Rating . | . . Part Studies Acquired . | . . Parts Repaired . | . . Time . | . . Parts Recycled 1 | . 1 Recycled Matter 303 | . 303 Retrieved Matter . | . . Retrieved Components . | . . Parts Scanalyzed . | . . Part Schematics Acquired . | . . Parts Damaged . | . . Bothacking | -11 -10 ------------ Run | Yrd Mat Used RIF Installer . | . . Robots Hacked . | . . Non-combat . | . . Combat . | . . Robot Hacks Applied . | . . Relay Couplers Released . | . . Fabnet Peak Effective % . | . . Robots Rewired . | . . Allies Hacked . | . . Hacks Repelled . | . . Allies | -11 -10 -------- Run | Yrd Mat Total Allies . | . . Largest Group . | . . Highest-Rated Group . | . . Highest-Rated Ally . | . . Total Orders . | . . Ally Attacks . | . . Total Damage . | . . Kills . | . . Allies Corrupted . | . . Allies Melted . | . . Intel | -11 -10 ------- Run | Yrd Mat Active Infowar (turns) . | . . Robot Analysis Total . | . . Derelict Logs Recovered . | . . Drone Launches . | . . Drone Recoveries . | . . Exploration | -11 -10 ------------- Run | Yrd Mat Turns Passed 1136 | 76 1060 Spaces Moved 289 | 42 247 Core 25 | 23 2 Treads . | . . Legs 264 | 19 245 Wheels . | . . Hover . | . . Flight . | . . Fastest Speed 50 | 50 120 Average Speed 351 | 141 387 Slowest Speed 1400 | 200 1400 Overloaded Moves . | . . Propulsion Burnouts . | . . Robots Hopped . | . . Potential Cave-ins . | . . Cave-ins Triggered . | . . Exploration Rate (%) 21 | 4 38 Regions Visited 1 Branch Regions . Pre-discovered Areas . | . . Known Exits Taken . | . . Unknown Exits Taken 1 | 1 . Scrap Searched . | . . Spaces Dug . | . . Terrain Destroyed 38 | . 38 Melee . | . . Projectile . | . . AOE 38 | . 38 Terrain Rammed . | . . Walls Destroyed . | . . Machines Disabled . | . . Actions | -11 -10 --------- Run | Yrd Mat Total 372 | 58 314 Wait 22 | . 22 Move 288 | 41 247 Hop . | . . Pick Up 21 | 12 9 Fast Attach . | . . Attach 8 | 5 3 Detach . | . . Swap 1 | . 1 Drop 2 | . 2 Fire 30 | . 30 Melee . | . . Ram . | . . Kick . | . . Crush . | . . Escape Stasis . | . . Rewire . | . . Trap . | . . Miscellaneous . | . . Route ------- -11/Scrapyard -10/Materials (discovered 1 exit: [*Mat]) History --------- Turn | Location | Event 3 | -11/Scrapyard | Discovered new exit (range 16) 77 | -11/Scrapyard | Entered Materials 316 | -10/Materials | Build established: Mutant 572 | -10/Materials | Discovered new exit (range 5) 1119 | -10/Materials | Core integrity fell below 50% 1132 | -10/Materials | Core integrity fell below 20% 1137 | -10/Materials | Destroyed by S-10 Pest with Light Assault Rifle Last Messages --------------- Huge Storage Unit (88) Huge Storage Unit (34) Aluminum Leg (32) Heat Sink (11) Aluminum Leg (24) Particle Gun (21) Flight Unit (6) Lgt. Assault Rifle (26) Flight Unit (8) Lgt. Assault Rifle (36) Lrg. Matter Pod (17) Recycling unit begins matter transfer process. K-01 Serf cleans the Fusion Modulator. Lgt. Assault Rifle destroyed. Aluminum Leg destroyed. Ion Engine destroyed. Critical hit (Destroy). Aluminum Leg destroyed. Lgt. Armor Plating destroyed. Med. Laser destroyed. Map ----- +----------------------------------------------------+ | ??# "" #????# #??????????????? | | ??# "" "" #????# #??????????????? | | ??# """ #????#+#??????????????? | | ??# """ #?????????????????????? | | ??# #?????????????????????? | | ??# #?????????????????????? | | ??## ##### #?????????????????????? | | ???# #???# #?????????????????????? | | ???# #???# #?????????????????????? | | ???# #???# + ?????????????????? | | ####+######## #### ??????????????? | | # # #????"T" ??????????????? | | # # ################+#######?? | | # # #?? | | # + u ### | | # # | | # ## ################# ### | | # ## # #?????# #?? | | ############## # #?????# #?? | | ?????????##### # """ #?????# #?? | | ?????????# # """ #?????# #?? | | ?????????# < + """ #?????# #?? | | ?????????# # "Y" #?????# #?? | | ?????????##### # """ #?????# #?? | | ?????????????# # #?????# #?? | | ?????????????# @ ###########?????# #?? | | ?????????????# #???????????????# #?? | | ?????????????# #???????????????# #?? | | ?????????????# #???????????????# #?? | | ????????????## ss##?????????######=%=#?? | | ????????????# ###########"T"## ### | | ????????????# s ^ | | ????????????# " ^ | | ????????????# ^ | | ????????????# """"" """"" ^ | | ????????????##### """"" """"" ^ | | ????????????????# """"" """"" ### | | ????????????????# # | | ????????????????# # | | ????????????????# """ """ # " | | ????????????????#^ """ """ # " | | ????????????????# """ """ # " | | ????????????????# + | | ????????????????# # | | ????????????????# ###########+### # | | ????????????????# #?????# # # | | ????????????????# #???????????????????? | | ????????????????? ????????????????????? | | ????????????????? ????????????????????? | | ????????????????? ????????????????????? | +----------------------------------------------------+ Best States ------------- Heat Dissipation 25 Energy Generation 10 Energy Capacity 250 Matter Stores 300 Matter Capacity 300 Sight Range 16 Terrain Scan Density 10 Armor Coverage 150 Evasion (%) 55 Item Schematics ----------------- None Robot Schematics ------------------ None Fabricated ------------ Nothing Repaired ---------- Nothing Studied --------- None Alien Tech Used ----------------- None Achievements -------------- Overwhelming Challenges ------------ None Game ------ Seed DecoyExperimentalDrillbomb Manual? 0 Play Time 00:12:34 Cumulative 2.1 hours Start 2026.04.08 @ 23:05:10 End 2026.04.08 @ 23:15:34 Sessions 1 Manual Loads 0 Difficulty Rogue Special Mode None Game No. 3 Rogue 3 Adventurer 0 Explorer 0 Win Type - Total 0 Types 0/0/0/0/0/0/0/0/0/0 Lore% 0 Gallery% 3 Achievement% 4 Wizard Run 0 Options --------- Layout 1 ASCII 0 Keyboard 0 Movement Mouse Keybinds 0 Fullscreen 1 Font 24/X11 Map View 50x35 Zoom Use 0% Tactical HUD 0 Map Filters NONE Filters NONE Steam 1 RUN: 383d0806-fba1-48dc-9806-4b17cc74b7ab